lending/lending_fUSD_20240410
["ID","MTS","AMOUNT","RATE_DAILY","PERIOD"]
[322051532,1712727046529,-215.392643,0.000209,2]
[322051533,1712727046538,-151.0,0.000209,2]
[322051534,1712727046547,-151.0,0.000209,2]
[322051535,1712727046557,-151.0,0.000209,2]
[322051536,1712727046566,-151.0,0.000209,2]
[322051537,1712727046575,-151.0,0.000209,2]
[322051538,1712727046584,-151.0,0.000209,2]
[322051539,1712727046594,-151.0,0.000209,2]
[322051540,1712727046602,-151.0,0.000209,2]
[322051541,1712727046612,-151.0,0.000209,2]
[322051542,1712727046622,-151.0,0.000209,2]
[322051543,1712727046631,-151.0,0.000209,2]
[322051544,1712727046640,-174.107824,0.000209,2]
[322051545,1712727046650,-174.107824,0.000209,2]
[322051546,1712727046659,-174.107824,0.000209,2]
[322051547,1712727046668,-174.107824,0.000209,2]
[322051548,1712727046677,-174.107824,0.000209,2]
[322051549,1712727046686,-174.107824,0.000209,2]
[322051550,1712727046696,-174.107824,0.000209,2]
[322051551,1712727046706,-174.107824,0.000209,2]
[322051552,1712727046715,-320.635152,0.000209,2]
[322051553,1712727046724,-320.635152,0.000209,2]
[322051554,1712727046733,-320.635152,0.000209,2]
[322051555,1712727046743,-320.635152,0.000209,2]
[322051556,1712727046752,-320.635152,0.000209,2]
[322051557,1712727046761,-185.902802,0.000209,2]
[322051558,1712727046771,-320.635152,0.000209,2]
[322051559,1712727046780,-151.0,0.000209,2]
[322051560,1712727046789,-185.902802,0.000209,2]
[322051561,1712727046798,-320.635152,0.000209,2]
[322051562,1712727046807,-151.0,0.000209,2]
[322051563,1712727046816,-185.902802,0.000209,2]
[322051564,1712727046826,-320.635152,0.000209,2]
[322051565,1712727046836,-151.0,0.000209,2]
[322051566,1712727046846,-185.902802,0.000209,2]
[322051567,1712727046855,-151.0,0.000209,2]
[322051568,1712727046865,-185.902802,0.000209,2]
[322051569,1712727046874,-151.0,0.000209,2]
[322051570,1712727046883,-185.902802,0.000209,2]
[322051571,1712727046893,-151.0,0.000209,2]
[322051572,1712727046907,-185.902802,0.000209,2]
[322051573,1712727046916,-151.0,0.000209,2]
[322051574,1712727046925,-185.902802,0.000209,2]
[322051575,1712727046934,-151.0,0.000209,2]
[322051576,1712727046944,-173.51776,0.000209,2]
[322051577,1712727046954,-158.223007,0.000209,2]
[322051578,1712727046964,-153.017824,0.000209,2]
[322051579,1712727046974,-151.0,0.000209,2]
[322051580,1712727046984,-151.0,0.000209,2]
[322051581,1712727046994,-165.237964,0.000209,2]
[322051582,1712727047004,-151.0,0.000209,2]
[322051583,1712727047015,-151.0,0.000209,2]
[322051584,1712727047024,-151.0,0.000209,2]
[322051585,1712727047035,-151.0,0.000209,2]
[322051586,1712727047045,-161.609212,0.000209,2]
[322051587,1712727047054,-673.85914271,0.000209,2]
[322051588,1712727047064,-151.0,0.000209,2]
[322051589,1712727047075,-151.0,0.000209,2]
[322051590,1712727047086,-151.0,0.000209,2]
[322051591,1712727047096,-151.0,0.000209,2]
[322051592,1712727047105,-154.037132,0.000209,2]
[322051593,1712727047116,-151.0,0.000209,2]
[322051594,1712727047126,-151.0,0.000209,2]
[322051595,1712727047135,-151.0,0.000209,2]
[322051596,1712727047144,-151.0,0.000209,2]
[322051597,1712727047153,-151.0,0.000209,2]
[322051598,1712727047162,-151.0,0.000209,2]
[322051599,1712727047175,-178.374018,0.000209,2]
[322051600,1712727047184,-271.21277041,0.000209,2]
[322051601,1712727047194,-151.0,0.000209,2]
[322051602,1712727047203,-151.0,0.000209,2]
[322051603,1712727047213,-151.0,0.000209,2]
[322051604,1712727047222,-151.0,0.000209,2]
[322051605,1712727047232,-151.0,0.000209,2]
[322051606,1712727047241,-151.0,0.000209,2]
[322051607,1712727047251,-151.0,0.000209,2]
[322051608,1712727047261,-151.0,0.000209,2]
[322051609,1712727047271,-151.0,0.000209,2]
[322051610,1712727047280,-151.0,0.000209,2]
[322051611,1712727047289,-151.0,0.000209,2]
[322051612,1712727047299,-151.0,0.000209,2]
[322051613,1712727047308,-151.0,0.000209,2]
[322051614,1712727047317,-151.0,0.000209,2]
[322051615,1712727047326,-151.0,0.000209,2]
[322051616,1712727047336,-247.652138,0.000209,2]
[322051617,1712727047347,-168.03795608,0.000209,2]
[322051618,1712727047356,-151.0,0.000209,2]
[322051619,1712727047369,-176.504256,0.000209,2]
[322051620,1712727047378,-151.0,0.000209,2]
[322051621,1712727047387,-151.0,0.000209,2]
[322051622,1712727047396,-151.0,0.000209,2]
[322051623,1712727047405,-151.0,0.000209,2]
[322051624,1712727047415,-151.0,0.000209,2]
[322051625,1712727047424,-151.0,0.000209,2]
[322051626,1712727047433,-151.0,0.000209,2]
[322051627,1712727047442,-151.0,0.000209,2]
[322051628,1712727047451,-240.680301,0.000209,2]
[322051629,1712727047460,-153.317001,0.000209,2]
[322051630,1712727047470,-151.0,0.000209,2]
[322051631,1712727047479,-151.0,0.000209,2]
[322051632,1712727047488,-151.0,0.000209,2]
[322051633,1712727047498,-151.0,0.000209,2]
[322051634,1712727047509,-151.0,0.000209,2]
[322051635,1712727047519,-151.0,0.000209,2]
[322051636,1712727047531,-151.0,0.000209,2]
[322051637,1712727047541,-151.0,0.000209,2]
[322051638,1712727047551,-168.84337744,0.000209,2]
[322051639,1712727047561,-151.0,0.00020912,2]
[322051640,1712727047570,-151.0,0.00020912,2]
[322051641,1712727047581,-154.185013,0.00020912,2]
[322051642,1712727047592,-239.302739,0.00020912,2]
[322051643,1712727047601,-221.99965,0.00020912,2]
[322051644,1712727047611,-151.0,0.00020912,2]
[322051645,1712727047620,-151.0,0.00020912,2]
[322051646,1712727047629,-4496.772,0.0002094,2]
[322051647,1712727047638,-5788.278,0.0002094,2]
[322051648,1712727047647,-2463.0,0.0002094,2]
[322051649,1712727047655,-573.534,0.0002094,2]
[322051650,1712727047665,-305.808,0.0002094,2]
[322051651,1712727047673,-1076.589,0.0002094,2]
[322051652,1712727047682,-151.0,0.0002094,2]
[322051653,1712727047692,-157.392205,0.0002094,2]
[322051654,1712727047701,-151.0,0.0002094,2]
[322051655,1712727047710,-151.0,0.0002094,2]
[322051656,1712727047720,-166.627786,0.0002094,2]
[322051657,1712727047729,-151.0,0.0002094,2]
[322051658,1712727047738,-151.0,0.0002094,2]
[322051659,1712727047748,-195.899302,0.0002094,2]
[322051660,1712727047757,-195.899302,0.0002094,2]
[322051661,1712727047766,-151.0,0.0002094,2]
[322051662,1712727047775,-370.741997,0.0002094,2]
[322051663,1712727047784,-370.741997,0.0002094,2]
[322051664,1712727047793,-210.572382,0.0002094,2]
[322051665,1712727047802,-210.572382,0.0002094,2]
[322051666,1712727047811,-482.484988,0.0002094,2]
[322051667,1712727047820,-482.484988,0.0002094,2]
[322051668,1712727047830,-357.742932,0.0002094,2]
[322051669,1712727047839,-357.742932,0.0002094,2]
[322051670,1712727047848,-151.0,0.0002094,2]
[322051671,1712727047857,-151.0,0.0002094,2]
[322051672,1712727047866,-151.0,0.0002094,2]
[322051673,1712727047875,-151.0,0.0002094,2]
[322051674,1712727047885,-320.131931,0.0002094,2]
[322051675,1712727047894,-320.131931,0.0002094,2]
[322051676,1712727047903,-151.0,0.0002094,2]
[322051677,1712727047912,-151.0,0.0002094,2]
[322051678,1712727047921,-165.266202,0.0002094,2]
[322051679,1712727047930,-165.266202,0.0002094,2]
[322051680,1712727047940,-200.660494,0.0002094,2]
[322051681,1712727047950,-200.660494,0.0002094,2]
[322051682,1712727047959,-431.01853,0.0002094,2]
[322051683,1712727047968,-431.01853,0.0002094,2]
[322051684,1712727047977,-171.397167,0.0002094,2]
[322051685,1712727047986,-171.397167,0.0002094,2]
[322051686,1712727047995,-151.0,0.0002094,2]
[322051687,1712727048005,-151.0,0.0002094,2]
[322051688,1712727048013,-299.667677,0.0002094,2]
[322051689,1712727048022,-264.524369,0.0002094,2]
[322051690,1712727048031,-805.678089,0.0002094,2]
[322051691,1712727048041,-151.0,0.0002094,2]
[322051692,1712727048050,-264.524369,0.0002094,2]
[322051693,1712727048059,-805.678089,0.0002094,2]
[322051694,1712727048068,-151.0,0.0002094,2]
[322051695,1712727048076,-169.067442,0.0002094,2]
[322051696,1712727048085,-151.0,0.0002094,2]
[322051697,1712727048095,-151.0,0.0002094,2]
[322051698,1712727048104,-215.392643,0.0002094,2]
[322051699,1712727048113,-215.392643,0.0002094,2]
[322051700,1712727048122,-166.419983,0.0002094,2]
[322051701,1712727048131,-272.684234,0.0002094,2]
[322051702,1712727048140,-151.0,0.0002094,2]
[322051703,1712727048150,-174.107824,0.0002094,2]
[322051704,1712727048159,-174.107824,0.0002094,2]
[322051705,1712727048169,-320.635152,0.0002094,2]
[322051706,1712727048181,-320.635152,0.0002094,2]
[322051707,1712727048190,-185.902802,0.0002094,2]
[322051708,1712727048200,-151.0,0.0002094,2]
[322051709,1712727048209,-185.902802,0.0002094,2]
[322051710,1712727048219,-151.0,0.0002094,2]
[322051711,1712727048227,-151.0,0.0002094,2]
[322051712,1712727048237,-151.0,0.0002094,2]
[322051713,1712727048246,-151.0,0.0002094,2]
[322051714,1712727048256,-151.0,0.0002094,2]
[322051715,1712727048265,-198.462087,0.0002094,2]
[322051716,1712727048274,-151.0,0.0002094,2]
[322051717,1712727048283,-151.0,0.0002094,2]
[322051718,1712727048292,-267.46618,0.0002094,2]
[322051719,1712727048301,-151.0,0.00020986,2]
[322051720,1712727048310,-151.97893,0.00020986,2]
[322051721,1712727048319,-151.0,0.00020986,2]
[322051722,1712727048328,-220.110496,0.00020986,2]
[322051723,1712727048337,-151.0,0.00020986,2]
[322051724,1712727048345,-151.0,0.00020986,2]
[322051725,1712727048354,-243.690912,0.00020986,2]
[322051726,1712727048363,-157.881184,0.00020986,2]
[322051727,1712727048372,-153.064509,0.00020986,2]
[322051728,1712727048381,-166.627786,0.00020986,2]
[322051729,1712727048389,-166.627786,0.00020986,2]
[322051730,1712727048398,-166.627786,0.00020986,2]
[322051731,1712727048406,-166.627786,0.00020986,2]
[322051732,1712727048416,-176.539073,0.00020986,2]
[322051733,1712727048425,-151.0,0.00020986,2]
[322051734,1712727048434,-157.235594,0.00020986,2]
[322051735,1712727048443,-195.899302,0.00020986,2]
[322051736,1712727048453,-195.899302,0.00020986,2]
[322051737,1712727048462,-195.899302,0.00020986,2]
[322051738,1712727048471,-195.899302,0.00020986,2]
[322051739,1712727048480,-195.899302,0.00020986,2]
[322051740,1712727048489,-195.899302,0.00020986,2]
[322051741,1712727048498,-195.899302,0.00020986,2]
[322051742,1712727048507,-195.899302,0.00020986,2]
[322051743,1712727048516,-151.0,0.00020986,2]
[322051744,1712727048525,-151.0,0.00020986,2]
[322051745,1712727048534,-240.007992,0.00020986,2]
[322051746,1712727048543,-370.741997,0.00020986,2]
[322051747,1712727048552,-370.741997,0.00020986,2]
[322051748,1712727048560,-370.741997,0.00020986,2]
[322051749,1712727048569,-370.741997,0.00020986,2]
[322051750,1712727048578,-370.741997,0.00020986,2]
[322051751,1712727048587,-370.741997,0.00020986,2]
[322051752,1712727048596,-370.741997,0.00020986,2]
[322051753,1712727048605,-370.741997,0.00020986,2]
[322051754,1712727048614,-210.572382,0.00020986,2]
[322051755,1712727048623,-210.572382,0.00020986,2]
[322051756,1712727048632,-210.572382,0.00020986,2]
[322051757,1712727048642,-210.572382,0.00020986,2]
[322051758,1712727048651,-210.572382,0.00020986,2]
[322051759,1712727048659,-210.572382,0.00020986,2]
[322051760,1712727048668,-210.572382,0.00020986,2]
[322051761,1712727048677,-210.572382,0.00020986,2]
[322051762,1712727048686,-482.484988,0.00020986,2]
[322051763,1712727048696,-482.484988,0.00020986,2]
[322051764,1712727048705,-482.484988,0.00020986,2]
[322051765,1712727048713,-482.484988,0.00020986,2]
[322051766,1712727048722,-482.484988,0.00020986,2]
[322051767,1712727048731,-482.484988,0.00020986,2]
[322051768,1712727048740,-482.484988,0.00020986,2]
[322051769,1712727048749,-482.484988,0.00020986,2]
[322051770,1712727048758,-357.742932,0.00020986,2]
[322051771,1712727048767,-357.742932,0.00020986,2]
[322051772,1712727048776,-357.742932,0.00020986,2]
[322051773,1712727048785,-357.742932,0.00020986,2]
[322051774,1712727048794,-357.742932,0.00020986,2]
[322051775,1712727048803,-357.742932,0.00020986,2]
[322051776,1712727048812,-357.742932,0.00020986,2]
[322051777,1712727048821,-357.742932,0.00020986,2]
[322051778,1712727048830,-357.742932,0.00020986,2]
[322051779,1712727048840,-357.742935,0.00020986,2]
[322051780,1712727048848,-151.0,0.00020986,2]
[322051781,1712727048857,-151.0,0.00020986,2]
[322051782,1712727048866,-156.220957,0.00020986,2]
[322051783,1712727048875,-151.0,0.00020986,2]
[322051784,1712727048884,-151.0,0.00020986,2]
[322051785,1712727048893,-151.0,0.00020986,2]
[322051786,1712727048902,-151.0,0.00020986,2]
[322051787,1712727048912,-151.0,0.00020986,2]
[322051788,1712727048921,-158.396081,0.00020986,2]
[322051789,1712727048930,-151.0,0.00020986,2]
[322051790,1712727048939,-151.0,0.00020986,2]
[322051791,1712727048948,-156.08243,0.00020986,2]
[322051792,1712727048957,-320.131931,0.00020986,2]
[322051793,1712727048967,-320.131931,0.00020986,2]
[322051794,1712727048976,-320.131931,0.00020986,2]
[322051795,1712727048985,-320.131931,0.00020986,2]
[322051796,1712727048994,-320.131931,0.00020986,2]
[322051797,1712727049003,-320.131931,0.00020986,2]
[322051798,1712727049012,-320.131931,0.00020986,2]
[322051799,1712727049021,-320.131931,0.00020986,2]
[322051800,1712727049030,-320.131931,0.00020986,2]
[322051801,1712727049040,-320.131925,0.00020986,2]
[322051802,1712727049049,-151.0,0.00020986,2]
[322051803,1712727049058,-157.407705,0.00020986,2]
[322051804,1712727049067,-165.266202,0.00020986,2]
[322051805,1712727049077,-165.266202,0.00020986,2]
[322051806,1712727049087,-165.266202,0.00020986,2]
[322051807,1712727049096,-165.266202,0.00020986,2]
[322051808,1712727049105,-165.266202,0.00020986,2]
[322051809,1712727049115,-165.266202,0.00020986,2]
[322051810,1712727049125,-200.660494,0.00020986,2]
[322051811,1712727049133,-165.266202,0.00020986,2]
[322051812,1712727049142,-165.266202,0.00020986,2]
[322051813,1712727049152,-165.266202,0.00020986,2]
[322051814,1712727049161,-200.660494,0.00020986,2]
[322051815,1712727049173,-165.266209,0.00020986,2]
[322051816,1712727049182,-200.660494,0.00020986,2]
[322051817,1712727049191,-200.660494,0.00020986,2]
[322051818,1712727049202,-200.660494,0.00020986,2]
[322051819,1712727049211,-200.660494,0.00020986,2]
[322051820,1712727049221,-200.660494,0.00020986,2]
[322051821,1712727049231,-200.660494,0.00020986,2]
[322051822,1712727049240,-200.660494,0.00020986,2]
[322051823,1712727049251,-200.660494,0.00020986,2]
[322051824,1712727049260,-3763.2764221,0.00020986,2]
[322051825,1712727049269,-3940.2163232,0.00020986,2]
[322051826,1712727049278,-4117.1562244,0.00020986,2]
[322051827,1712727049288,-4294.0961255,0.00020986,2]
[322051828,1712727049297,-431.01853,0.00020986,2]
[322051829,1712727049306,-431.01853,0.00020986,2]
[322051830,1712727049315,-431.01853,0.00020986,2]
[322051831,1712727049325,-431.01853,0.00020986,2]
[322051832,1712727049334,-431.01853,0.00020986,2]
[322051833,1712727049344,-431.01853,0.00020986,2]
[322051834,1712727049353,-431.01853,0.00020986,2]
[322051835,1712727049362,-431.01853,0.00020986,2]
[322051836,1712727049371,-431.01853,0.00020986,2]
[322051837,1712727049380,-431.018534,0.00020986,2]
[322051838,1712727049390,-171.397167,0.00020986,2]
[322051839,1712727049399,-171.397167,0.00020986,2]
[322051840,1712727049410,-171.397167,0.00020986,2]
[322051841,1712727049421,-171.397167,0.00020986,2]
[322051842,1712727049430,-171.397167,0.00020986,2]
[322051843,1712727049441,-171.397167,0.00020986,2]
[322051844,1712727049453,-171.397167,0.00020986,2]
[322051845,1712727049462,-171.397167,0.00020986,2]
[322051846,1712727049475,-171.397167,0.00020986,2]
[322051847,1712727049488,-171.397166,0.00020986,2]
[322051848,1712727049498,-154.934108,0.00020986,2]
[322051849,1712727049508,-151.0,0.00020986,2]
[322051850,1712727049517,-151.0,0.00020986,2]
[322051851,1712727049527,-151.0,0.00020986,2]
[322051852,1712727049535,-151.0,0.00020986,2]
[322051853,1712727049545,-151.0,0.00020986,2]
[322051854,1712727049554,-264.524369,0.00020986,2]
[322051855,1712727049564,-805.678089,0.00020986,2]
[322051856,1712727049735,-151.0,0.00020986,2]
[322051857,1712727049745,-264.524369,0.00020986,2]
[322051858,1712727049754,-805.678089,0.00020986,2]
[322051859,1712727049763,-151.0,0.00020986,2]
[322051860,1712727049772,-264.524369,0.00020986,2]
[322051861,1712727049781,-805.678089,0.00020986,2]
[322051862,1712727049790,-151.0,0.00020986,2]
[322051863,1712727049799,-264.524369,0.00020986,2]
[322051864,1712727049808,-805.678089,0.00020986,2]
[322051865,1712727049818,-264.524369,0.00020986,2]
[322051866,1712727049827,-805.678089,0.00020986,2]
[322051867,1712727049836,-151.0,0.00020986,2]
[322051868,1712727049845,-157.718147,0.00020986,2]
[322051869,1712727049855,-264.524369,0.00020986,2]
[322051870,1712727049864,-805.678089,0.00020986,2]
[322051871,1712727049873,-264.524369,0.00020986,2]
[322051872,1712727049882,-805.678089,0.00020986,2]
[322051873,1712727049891,-264.524369,0.00020986,2]
[322051874,1712727049900,-805.678089,0.00020986,2]
[322051875,1712727049909,-264.524369,0.00020986,2]
[322051876,1712727049918,-805.678089,0.00020986,2]
[322051877,1712727049927,-264.524369,0.00020986,2]
[322051878,1712727049936,-805.678082,0.00020986,2]
[322051879,1712727049946,-151.0,0.00020986,2]
[322051880,1712727049955,-154.700558,0.00020986,2]
[322051881,1712727049964,-151.0,0.00020986,2]
[322051882,1712727049974,-151.0,0.00020986,2]
[322051883,1712727049983,-151.0,0.00020986,2]
[322051884,1712727049992,-151.0,0.00020986,2]
[322051885,1712727050001,-151.0,0.00020986,2]
[322051886,1712727050010,-151.0,0.00020986,2]
[322051887,1712727050019,-293.198952,0.00020986,2]
[322051888,1712727050028,-7269.4271379,0.00020986,2]
[322051889,1712727050037,-7498.4238373,0.00020986,2]
[322051890,1712727050047,-7727.4205367,0.00020986,2]
[322051891,1712727050056,-7956.417236,0.00020986,2]
[322051892,1712727050066,-8185.4139354,0.00020986,2]
[322051893,1712727050075,-215.392643,0.00020986,2]
[322051894,1712727050084,-215.392643,0.00020986,2]
[322051895,1712727050094,-215.392643,0.00020986,2]
[322051896,1712727050103,-215.392643,0.00020986,2]
[322051897,1712727050112,-215.392643,0.00020986,2]
[322051898,1712727050121,-215.392643,0.00020986,2]
[322051899,1712727050131,-215.392643,0.00020986,2]
[322051900,1712727050140,-215.392643,0.00020986,2]
[322051901,1712727050149,-215.392643,0.00020986,2]
[322051902,1712727050158,-215.392643,0.00020986,2]
[322051903,1712727050167,-77.01980963,0.00020986,2]
[322051904,1712727050925,-138.37283337,0.00020986,2]
[322051905,1712727050934,-215.392649,0.00020986,2]
[322051906,1712727050944,-151.0,0.00020986,2]
[322051907,1712727050955,-151.0,0.00020986,2]
[322051908,1712727050965,-192.076727,0.00020986,2]
[322051909,1712727050974,-174.107824,0.00020986,2]
[322051910,1712727050984,-174.107824,0.00020986,2]
[322051911,1712727050993,-174.107824,0.00020986,2]
[322051912,1712727051003,-174.107824,0.00020986,2]
[322051913,1712727051012,-174.107824,0.00020986,2]
[322051914,1712727051021,-174.107824,0.00020986,2]
[322051915,1712727051030,-174.107824,0.00020986,2]
[322051916,1712727051040,-174.107834,0.00020986,2]
[322051917,1712727051049,-320.635152,0.00020986,2]
[322051918,1712727051059,-320.635152,0.00020986,2]
[322051919,1712727051068,-320.635152,0.00020986,2]
[322051920,1712727051078,-220.38272946,0.00020986,2]
[322051921,1712727053042,-100.25242254,0.00020986,2]
[322051922,1712727053052,-320.635152,0.00020986,2]
[322051923,1712727053061,-185.902802,0.00020986,2]
[322051924,1712727053071,-320.635152,0.00020986,2]
[322051925,1712727053080,-185.902802,0.00020986,2]
[322051926,1712727053089,-320.635152,0.00020986,2]
[322051927,1712727053098,-185.902802,0.00020986,2]
[322051928,1712727053107,-320.63516,0.00020986,2]
[322051929,1712727053117,-185.902802,0.00020986,2]
[322051930,1712727053126,-151.0,0.00020986,2]
[322051931,1712727053135,-151.0,0.00020986,2]
[322051932,1712727053144,-151.0,0.00020986,2]
[322051933,1712727053154,-151.0,0.00020986,2]
[322051934,1712727053166,-185.902802,0.00020986,2]
[322051935,1712727053177,-1543.2467853,0.00020986,2]
[322051936,1712727053187,-185.902802,0.00020986,2]
[322051937,1712727053196,-1620.2100816,0.00020986,2]
[322051938,1712727053206,-185.902802,0.00020986,2]
[322051939,1712727053217,-1697.1733778,0.00020986,2]
[322051940,1712727053227,-1774.1366741,0.00020986,2]
[322051941,1712727053238,-185.9028,0.00020986,2]
[322051942,1712727053248,-152.452959,0.00020986,2]
[322051943,1712727053258,-151.0,0.00020986,2]
[322051944,1712727053268,-151.0,0.00020986,2]
[322051945,1712727053278,-154.691397,0.00020986,2]
[322051946,1712727053287,-151.0,0.00020986,2]
[322051947,1712727053296,-151.0,0.00020986,2]
[322051948,1712727053306,-222.41308,0.00020986,2]
[322051949,1712727053315,-151.0,0.00020986,2]
[322051950,1712727053324,-151.0,0.00020986,2]
[322051951,1712727053334,-151.0,0.00020986,2]
[322051952,1712727053343,-151.0,0.00020986,2]
[322051953,1712727053352,-151.0,0.00020986,2]
[322051954,1712727053362,-151.0,0.00020986,2]
[322051955,1712727053371,-151.0,0.00020986,2]
[322051956,1712727053380,-151.0,0.00020986,2]
[322051957,1712727053389,-151.0,0.00020986,2]
[322051958,1712727053398,-151.0,0.00020986,2]
[322051959,1712727053408,-151.0,0.00020986,2]
[322051960,1712727053417,-151.0,0.00020986,2]
[322051961,1712727053426,-159.394794,0.00020986,2]
[322051962,1712727053435,-151.0,0.00020986,2]
[322051963,1712727053445,-151.0,0.00020986,2]
[322051964,1712727053456,-151.0,0.00020986,2]
[322051965,1712727053466,-151.0,0.00020986,2]
[322051966,1712727053476,-239.931495,0.00020986,2]
[322051967,1712727053485,-5158.95107042,0.00020986,2]
[322051968,1712727082977,1250.0,0.00019,3]
[322051969,1712727174544,367.1,0.00018343,2]
[322051970,1712727200033,269.79659366,0.00020499,5]
[322051975,1712727703602,348.74,0.00017928,2]
[322051983,1712728192363,331.3,0.00017665,2]
[322051996,1712728231929,-152.83,0.00019705,2]
[322051997,1712728231939,-390.88,0.00019732,2]
[322051998,1712728231949,-1492.0076594,0.00019763,2]
[322051999,1712728232090,-2259.9226758,0.00019763,2]
[322052000,1712728232101,-477.77,0.00019764,2]
[322052001,1712728232111,-150.0,0.00019845,2]
[322052002,1712728232121,-150.0,0.00019845,2]
[322052003,1712728232132,-191.81389102,0.00019846,2]
[322052004,1712728232141,-1000.15970586,0.00019846,2]
[322052005,1712728232150,-808.35069092,0.00019846,2]
[322052006,1712728232160,-150.0,0.00019863,2]
[322052007,1712728232169,-609.12,0.00019877,2]
[322052008,1712728232179,-331.3,0.00019929,2]
[322052009,1712728232188,-2234.42,0.00019944,2]
[322052010,1712728232197,-2234.42,0.00019944,2]
[322052011,1712728232207,-406.01714108,0.00019944,2]
[322052012,1712728232222,-1828.40285892,0.00019944,2]
[322052013,1712728232231,-2234.42,0.00019944,2]
[322052014,1712728232240,-2234.42,0.00019944,2]
[322052015,1712728232250,-2234.42,0.00019944,2]
[322052017,1712728232259,-2234.42,0.00019944,2]
[322052019,1712728232268,-2234.42,0.00019944,2]
[322052021,1712728232277,-2234.42,0.00019944,2]
[322052023,1712728232286,-2234.42,0.00019944,2]
[322052025,1712728232295,-2234.42,0.00019944,2]
[322052026,1712728232305,-82.88840666,0.00019944,2]
[322052077,1712728238298,-153.58837516,0.000199,2]
[322052079,1712728238307,-2151.53159334,0.00019944,2]
[322052081,1712728238317,-1172.37186124,0.00019944,2]
[322052084,1712728238328,-885.30001992,0.00019944,2]
[322052086,1712728238339,-176.74811884,0.00019944,2]
[322052088,1712728238348,-643.03517152,0.00019944,2]
[322052270,1712728240272,-626.59166763,0.00019944,2]
[322052273,1712728240284,-884.92702455,0.00019944,2]
[322052275,1712728240295,-79.8661363,0.00019944,2]
[322052277,1712728240304,-1306.62281981,0.00019944,2]
[322052554,1712728243026,-927.79718019,0.00019944,2]
[322052556,1712728243035,-2234.42,0.00019944,2]
[322052558,1712728243045,-1666.32129501,0.00019944,2]
[322052574,1712728243194,-547.73598015,0.00019944,2]
[322052581,1712728243254,-20.36272484,0.00019944,2]
[322052583,1712728243264,-2234.42,0.00019944,2]
[322052586,1712728243273,-2234.42,0.00019944,2]
[322052588,1712728243283,-2234.42,0.00019944,2]
[322052590,1712728243292,-2234.42,0.00019944,2]
[322052591,1712728243301,-2234.42,0.00019944,2]
[322052593,1712728243311,-2234.42,0.00019944,2]
[322052596,1712728243320,-2234.57010494,0.00019944,2]
[322052597,1712728243329,-69285.13736467,0.00019945,2]
[322052622,1712728245811,-13585.8,0.00019945,2]
[322052623,1712728245866,-4621.12335749,0.00019945,2]
[322052624,1712728245974,-1999.047922,0.00019945,2]
[322052625,1712728246031,-5750.4767841,0.00019945,2]
[322052626,1712728246086,-3565.37566777,0.00019945,2]
[322052627,1712728342116,17641.0,0.00021,5]
[322052631,1712728796403,298.17,0.00017845,2]
[322052632,1712729029334,312.71,0.00019485,2]
[322052633,1712729201365,-317.84,0.00019693,2]
[322052634,1712729201388,-1682.16,0.00019709,2]